bitfinex/quotes_ETHUSD_20241001
["timestamp","ask_amount","ask_price","bid_price","bid_amount"]
[1727744793322,2.01167,2632.6,2631.9,3.79942]
[1727744793618,11.14827,2632.8,2632.0,4.26390005]
[1727744793968,11.14827,2632.8,2632.0,3.87535047]
[1727744793969,7.35,2632.8,2632.0,3.87535047]
[1727744794231,11.14824,2632.8,2632.0,7.59866]
[1727744794408,11.14824,2632.8,2632.0,3.87526612]
[1727744794720,4.58008,2633.0,2632.1,3.87517613]
[1727744794721,4.58016,2633.0,2632.1,3.87517613]
[1727744794927,3.79809,2632.9,2632.1,8.37561795]
[1727744795088,3.79809,2632.9,2632.2,3.79905]
[1727744795729,3.79809,2632.9,2632.1,3.79913]
[1727744795885,0.5038198,2632.8,2632.1,3.79913]
[1727744796277,4.3021498,2632.8,2632.0,6.79936]
[1727744796587,4.3021498,2632.8,2632.0,3.075977]
[1727744796831,4.3021498,2632.8,2632.0,3.0]
[1727744797126,3.79852,2632.6,2632.0,3.0]
[1727744797346,4.60858698,2632.6,2632.0,3.0]
[1727744798092,3.79904,2632.3,2631.3,0.7645]
[1727744798297,3.79927,2632.1,2631.3,4.56085]
[1727744798531,3.79927,2632.1,2631.5,3.80011]
[1727744798727,3.79927,2632.1,2631.3,4.56085]
[1727744798728,3.79941,2632.0,2631.3,3.80035]
[1727744798932,0.7551,2631.8,2631.3,4.57013533]
[1727744799142,0.7551,2631.8,2631.3,0.76978533]
[1727744799143,4.55486,2631.8,2631.3,0.76978533]
[1727744799432,4.55486,2631.8,2631.1,3.8006]
[1727744799433,4.55486,2631.8,2631.2,3.80054]
[1727744799801,4.55486,2631.8,2630.9,3.80091]
[1727744799802,3.80021,2631.5,2630.9,3.80091]
[1727744800216,3.80007,2631.6,2630.7,6.00033747]
[1727744800217,3.80027,2631.4,2630.7,6.00033747]
[1727744800540,3.80027,2631.4,2630.8,0.98978408]
[1727744800904,3.80027,2631.4,2630.7,3.80116]
[1727744801214,3.80003,2631.6,2630.9,7.60184]
[1727744801542,3.80003,2631.6,2630.9,3.80089]
[1727744801744,3.80003,2631.6,2630.9,7.60178]
[1727744801947,3.80003,2631.6,2631.0,3.8008]
[1727744802166,3.80003,2631.6,2630.9,3.80089]
[1727744802306,3.80003,2631.6,2630.9,4.5611]
[1727744802713,3.80003,2631.6,2630.7,3.0]
[1727744803019,3.80015,2631.5,2630.9,7.60174]
[1727744803240,0.7551,2631.8,2631.1,3.80059]
[1727744803538,3.79991,2631.7,2631.1,4.56834126]
[1727744804148,7.59985,2631.7,2631.1,4.56834126]
[1727744804452,4.55489,2631.8,2631.1,4.56833126]
[1727744804743,4.55489,2631.8,2631.1,3.80058]
[1727744804949,4.55489,2631.8,2630.9,7.67778622]
[1727744804950,3.79997,2631.6,2630.9,7.67778622]
[1727744805152,3.79997,2631.6,2631.0,3.80082]
[1727744805536,0.7551,2631.8,2631.2,3.80052]
[1727744805735,0.7551,2631.8,2631.2,4.180572]
[1727744805947,0.7551,2631.8,2631.3,3.80038]
[1727744806255,0.7551,2631.8,2631.2,0.07600149]
[1727744806256,3.79999,2631.6,2631.2,0.07600149]
[1727744806487,3.79999,2631.6,2631.1,3.0]
[1727744806674,3.79993,2631.7,2631.1,3.0]
[1727744806956,3.79993,2631.7,2630.6,7.69882332]
[1727744806957,3.8005,2631.3,2630.6,7.69882332]
[1727744807170,3.8005,2631.3,2630.7,6.80115]
[1727744807322,7.601,2631.3,2630.7,3.0]
[1727744807528,3.8005,2631.3,2630.7,3.0]
[1727744807728,3.80028,2631.4,2630.8,3.80111]
[1727744808131,3.80018,2631.5,2630.8,3.80111]
[1727744808569,3.80029,2631.4,2630.8,3.80111]
[1727744808770,3.80018,2631.5,2630.8,3.80111]
[1727744808771,3.8004,2631.3,2630.8,3.80111]
[1727744809057,3.80018,2631.5,2630.8,3.80102]
[1727744809058,3.80026,2631.4,2630.8,3.80102]
[1727744809251,3.80018,2631.5,2630.9,3.80094]
[1727744809446,4.255383,2631.7,2631.0,3.80071]
[1727744809628,3.8,2631.6,2631.0,3.80071]
[1727744810258,4.255383,2631.7,2631.0,3.80071]
[1727744810446,3.79997,2631.6,2631.0,3.80071]
[1727744810768,4.3010183,2631.6,2631.0,3.80071]
[1727744810962,3.79992,2631.7,2631.0,3.80075]
[1727744811269,3.79992,2631.7,2631.1,3.80067]
[1727744811501,3.79992,2631.7,2631.0,3.80075]
[1727744811502,3.79999,2631.6,2631.0,3.80075]
[1727744811763,3.79992,2631.7,2630.9,3.80088]
[1727744811764,3.80016,2631.5,2630.9,3.80088]
[1727744811964,3.80016,2631.5,2631.0,3.80082]
[1727744812134,0.7551,2631.8,2631.3,3.80031]
[1727744813338,0.7551,2631.8,2631.4,3.80024]
[1727744813550,0.7551,2631.8,2631.0,0.7607]
[1727744813739,0.7551,2631.8,2631.4,3.80017]
[1727744814359,3.0,2632.3,2631.4,3.80017]
[1727744814360,4.56129,2632.3,2631.7,3.79972]
[1727744814671,4.56129,2632.3,2631.4,0.760049]
[1727744814672,0.7623,2632.3,2631.4,0.760049]
[1727744814878,0.81006698,2632.6,2631.1,3.0]
[1727744814879,3.79976,2631.8,2631.1,3.0]
[1727744815072,3.79976,2631.8,2631.2,3.0]
[1727744815271,3.79976,2631.8,2631.2,6.80054]
[1727744815425,3.79976,2631.8,2631.2,3.0]
[1727744815834,3.79976,2631.8,2631.2,6.80052]
[1727744816359,3.79976,2631.8,2631.2,3.0]
[1727744816775,3.79969,2631.8,2631.2,6.80052]
[1727744816975,4.56194,2631.9,2631.3,3.8003]
[1727744817170,0.7623,2631.9,2631.3,3.8003]
[1727744817374,0.7623,2631.9,2631.3,7.60059]
[1727744817578,0.7623,2631.9,2631.3,7.6006]
[1727744817774,4.56186,2631.9,2631.3,3.80029]
[1727744817999,0.7623,2631.9,2631.4,3.80014]
[1727744818219,0.7623,2631.9,2631.5,3.79997]
[1727744818412,0.7623,2631.9,2631.6,3.79994]
[1727744818809,0.7623,2631.9,2631.7,3.79978]
[1727744818986,0.7623,2631.9,2631.6,3.79994]
[1727744819182,0.7623,2631.9,2631.7,3.79982]
[1727744819420,0.7623,2631.9,2631.6,3.79994]
[1727744819709,0.7623,2631.9,2631.5,3.80007]
[1727744819916,0.7623,2631.9,2631.6,3.79996]
[1727744821234,0.7623,2631.9,2631.4,3.80016]
[1727744821377,0.7623,2631.9,2631.1,6.87662838]
[1727744821578,7.35,2632.2,2632.0,3.79938]
[1727744821779,0.8171,2632.5,2632.0,3.79938]
[1727744822200,0.8171,2632.5,2632.0,3.7993]
[1727744822407,4.61577,2632.5,2631.8,3.79959]
[1727744822600,4.61577,2632.5,2631.9,3.79953]
[1727744822601,3.79883,2632.4,2631.9,3.79953]
[1727744822787,4.61577,2632.5,2631.8,3.79958]
[1727744822987,4.61577,2632.5,2632.0,3.79935]
[1727744823189,5.45719,2632.5,2632.0,3.79935]
[1727744823716,5.45719,2632.5,2631.8,3.79961]
[1727744823922,5.45727,2632.5,2631.8,3.79961]
[1727744824092,5.45727,2632.5,2631.7,3.0]
[1727744824093,3.79904,2632.3,2631.7,3.0]
[1727744824280,1.65852,2632.5,2631.4,3.80018]
[1727744824281,4.59268,2632.0,2631.4,3.80018]
[1727744824480,0.7932,2632.0,2631.5,3.80003]
[1727744824710,0.7932,2632.0,2631.2,5.33408117]
[1727744824895,0.7932,2632.0,2630.8,3.80106]
[1727744825217,0.8068,2631.6,2631.0,3.80074]
[1727744825379,0.8068,2631.6,2631.0,4.560911]
[1727744825584,3.80012,2631.5,2631.0,0.760171]
[1727744825789,3.8003,2631.4,2630.9,3.80097]
[1727744826086,0.8068,2631.6,2630.6,3.93583476]
[1727744826284,0.8068,2631.6,2630.8,3.17053476]
[1727744826490,0.8068,2631.6,2631.0,3.80075]
[1727744826491,4.60677,2631.6,2631.0,3.80075]
[1727744826819,4.60677,2631.6,2631.0,7.60149]
[1727744826999,4.60677,2631.6,2631.1,3.80067]
[1727744827175,0.7922,2632.0,2631.5,3.80011]
[1727744827379,3.17053476,2632.6,2631.7,3.17053476]
[1727744827380,0.7922,2632.6,2631.7,3.17053476]
[1727744827646,0.7922,2632.6,2632.2,3.79901]
[1727744827835,0.7922,2632.6,2632.3,3.79893]
[1727744827979,0.7922,2632.6,2632.2,3.79901]
[1727744828409,0.7922,2632.6,2632.0,3.79927]
[1727744828581,0.7922,2632.6,2631.8,3.0]
[1727744828792,0.7922,2632.6,2631.7,3.0]
[1727744829414,3.79876,2632.5,2631.8,3.79955]
[1727744830118,3.79895,2632.4,2631.8,3.79955]
[1727744830321,3.79876,2632.5,2631.9,3.79941]
[1727744830638,0.459096,2632.5,2632.0,3.79926]
[1727744830817,0.459096,2632.5,2632.0,7.59855]
[1727744830991,0.459096,2632.5,2632.0,7.59854]
[1727744831403,4.59074,2632.6,2632.0,7.59854]
[1727744831686,4.59074,2632.6,2632.0,7.59855]
[1727744831847,0.7922,2632.6,2632.0,7.59855]
[1727744832239,0.7922,2632.6,2632.2,3.79898]
[1727744832665,0.7922,2632.6,2632.2,7.59798]
[1727744833068,0.7922,2632.6,2632.2,3.79898]
[1727744833253,0.7922,2632.6,2632.1,3.79923]
[1727744833450,0.7922,2632.6,2632.3,3.79889]
[1727744833651,4.61785,2632.9,2632.3,3.79888]
[1727744833849,0.8197,2632.9,2632.3,0.379888]
[1727744834154,0.8197,2632.9,2632.6,3.79849]
[1727744834370,0.8197,2632.9,2632.6,3.79842]
[1727744834676,0.8197,2632.9,2632.5,3.79866]
[1727744834894,4.61792,2632.9,2632.3,3.79894]
[1727744835189,4.61792,2632.9,2632.4,3.79878]
[1727744835382,0.8197,2632.9,2632.5,3.79857]
[1727744835774,0.8197,2632.9,2632.5,3.79866]
[1727744836149,7.35,2633.2,2632.7,3.79836]
[1727744836150,8.1561,2633.2,2632.7,3.79836]
[1727744836492,8.1561,2633.2,2632.9,3.79801]
[1727744836493,0.8061,2633.2,2632.9,3.79801]
[1727744836791,0.8061,2633.2,2632.9,7.596]
[1727744836947,0.1265399,2633.4,2632.9,4.18538766]
[1727744837288,0.1265399,2633.4,2633.0,3.79786]
[1727744837492,0.1265399,2633.4,2632.9,4.18538766]
[1727744837654,0.1265399,2633.4,2633.0,3.79794]
[1727744838188,0.1265399,2633.4,2633.0,4.59617277]
[1727744838392,0.1265399,2633.4,2633.3,6.79751]
[1727744838575,0.1265399,2633.4,2633.3,7.64894667]
[1727744838747,0.1265399,2633.4,2633.3,3.0]
[1727744838950,0.1265399,2633.4,2633.0,5.37171277]
[1727744839184,0.1265399,2633.4,2633.1,3.0]
[1727744839550,0.8106,2633.3,2632.9,3.79808]
[1727744839748,0.8106,2633.3,2632.6,3.79844]
[1727744839957,0.8106,2633.3,2632.7,6.79827]
[1727744840180,0.8106,2633.3,2632.8,3.79822]
[1727744840387,0.8106,2633.3,2632.7,3.0]
[1727744840592,0.8106,2633.3,2632.8,3.79814]
[1727744840892,4.60811,2633.3,2632.7,3.79836]
[1727744841198,0.8106,2633.3,2632.7,3.0]
[1727744841408,0.8106,2633.3,2632.8,3.7982]
[1727744841683,0.8106,2633.3,2633.0,3.79785]
[1727744841892,0.8106,2633.3,2632.8,3.79817]
[1727744842045,0.8106,2633.3,2633.0,3.79791]
[1727744842251,0.1265399,2633.4,2633.3,3.79751]
[1727744842473,0.1265399,2633.4,2633.2,3.79766]
[1727744842658,0.1265399,2633.4,2633.1,3.0]
[1727744842870,0.1265399,2633.4,2633.0,3.79784]
[1727744843594,0.1265399,2633.4,2633.1,3.79774]
[1727744843795,0.1265399,2633.4,2633.2,3.79755]
[1727744844649,0.1265399,2633.4,2633.0,3.79789]
[1727744844853,0.1265399,2633.4,2633.1,4.177529]
[1727744845156,0.1265399,2633.4,2633.2,3.7976]
[1727744845596,0.1265399,2633.4,2633.3,3.79751]
[1727744845982,0.1265399,2633.4,2633.2,3.79757]
[1727744846167,0.1265399,2633.4,2633.2,7.59513]
[1727744846494,0.1265399,2633.4,2633.1,0.379789]
[1727744846695,0.1265399,2633.4,2633.0,3.79785]
[1727744846879,0.1265399,2633.4,2632.2,2.004]
[1727744846880,0.8063,2633.3,2632.4,0.8226]
[1727744847192,0.8063,2633.3,2632.6,3.79844]
[1727744847414,0.8063,2633.3,2632.8,3.7981]
[1727744847765,4.60383,2633.3,2632.8,3.7981]
[1727744848076,0.8063,2633.3,2632.8,3.7981]
[1727744848277,0.8063,2633.3,2632.6,3.79844]
[1727744848278,3.7977,2633.2,2632.7,3.0]
[1727744848485,0.8063,2633.3,2632.7,6.79827]
[1727744848799,3.79775,2633.2,2632.7,3.0]
[1727744848953,3.79775,2633.2,2632.4,4.62137]
[1727744848954,3.79775,2633.2,2632.5,3.0]
[1727744849159,3.79775,2633.2,2632.6,4.560642]
[1727744849409,3.9239799,2633.4,2632.1,0.8226]
[1727744849410,0.8063,2632.9,2632.1,0.8226]
[1727744849558,0.8063,2632.9,2632.3,3.79882]
[1727744849897,0.8063,2632.9,2632.4,3.79879]
[1727744850064,0.8063,2632.9,2632.3,3.79882]
[1727744850275,0.8063,2632.9,2632.3,4.178702]
[1727744851114,0.8063,2632.9,2632.5,3.79862]
[1727744852113,0.8063,2632.9,2632.6,3.79843]
[1727744852311,0.8063,2632.9,2632.3,4.178712]
[1727744852617,0.8063,2632.9,2632.3,0.379882]
[1727744852916,0.8063,2632.9,2631.7,3.0]
[1727744852917,3.79836,2632.8,2632.2,3.799]
[1727744853221,3.79828,2632.8,2632.2,3.0]
[1727744853402,4.60451,2632.9,2632.3,0.679915]
[1727744853403,0.8063,2632.9,2632.3,0.679915]
[1727744853605,11.96043,2633.3,2632.1,3.87517813]
[1727744853788,8.1629,2633.3,2632.7,3.79825]
[1727744853988,8.1629,2633.3,2632.3,3.55]
[1727744853989,3.79778,2633.2,2632.6,3.79846]
[1727744854304,3.79781,2633.1,2632.6,3.79846]
[1727744854690,12.78936399,2633.3,2632.6,3.79846]
[1727744855014,12.78936399,2633.3,2632.6,3.79842]
[1727744855318,16.58698399,2633.3,2632.7,3.79834]
[1727744855480,12.78936399,2633.3,2632.6,3.79842]
[1727744855675,1.29159039,2633.2,2632.4,3.79873]
[1727744855876,3.79788,2633.1,2632.5,3.79855]
[1727744856186,3.79788,2633.1,2632.6,3.79852]
[1727744856978,3.79788,2633.1,2632.5,3.79864]
[1727744857178,11.96048,2633.3,2632.7,3.79826]
[1727744857399,3.79782,2633.1,2632.6,3.79849]
[1727744857607,11.96048,2633.3,2632.7,3.79834]
[1727744857888,13.54886299,2633.3,2632.8,3.79821]
[1727744858213,13.54886299,2633.3,2633.0,3.79792]
[1727744858214,8.1629,2633.3,2633.0,3.79792]
[1727744858575,0.8129,2633.3,2633.0,3.79792]
[1727744858801,0.8129,2633.3,2632.5,3.07595883]
[1727744859105,0.8129,2633.3,2632.9,3.79808]
[1727744859490,0.8129,2633.3,2633.0,3.79785]
[1727744859918,0.8129,2633.3,2632.8,3.79822]
[1727744860082,0.8129,2633.3,2632.6,0.30759588]
[1727744860083,3.79766,2633.2,2632.6,4.10603588]
[1727744860288,0.756,2632.9,2632.5,3.79864]
[1727744860492,0.756,2632.9,2632.4,3.79873]
[1727744860690,0.756,2632.9,2632.3,3.79889]
[1727744860914,0.756,2632.9,2632.3,4.558681]
[1727744861117,0.756,2632.9,2632.3,0.759791]
[1727744861424,3.79832,2632.8,2632.2,7.59802]
[1727744861584,3.79838,2632.7,2632.2,3.79901]
[1727744862085,0.756,2632.9,2632.4,3.79879]
[1727744862285,4.55415,2632.9,2632.4,3.79879]
[1727744862724,3.79828,2632.8,2632.2,3.79901]
[1727744863021,3.79828,2632.8,2632.2,4.858843]
[1727744863445,3.79828,2632.8,2632.3,3.79892]
[1727744863813,3.79828,2632.8,2632.2,4.858843]
[1727744864533,0.756,2632.9,2632.4,3.7988]
[1727744864828,3.79826,2632.8,2632.3,3.79894]
[1727744865045,3.79826,2632.8,2632.2,4.858843]
[1727744865188,3.79826,2632.8,2632.3,3.79893]
[1727744865388,0.756,2632.9,2632.4,3.79872]
[1727744865589,4.55409,2632.9,2632.4,3.79872]
[1727744866770,3.79775,2633.2,2632.4,4.6644783]
[1727744867037,0.7516,2633.1,2632.6,7.59683]
[1727744867188,0.7516,2633.1,2632.6,3.79841]
[1727744867590,0.7516,2633.1,2632.6,7.59685]
[1727744867840,0.7516,2633.1,2632.9,3.79797]
[1727744868134,0.7516,2633.1,2632.8,3.79822]
[1727744869392,0.7516,2633.1,2632.8,3.79814]
[1727744869724,0.8807399,2633.4,2633.0,3.79794]
[1727744869933,0.8807399,2633.4,2633.1,3.79776]
[1727744870111,0.8807399,2633.4,2633.0,3.79794]
[1727744870319,0.8807399,2633.4,2632.8,3.79815]
[1727744870320,4.6781999,2633.4,2632.8,3.79815]
[1727744870609,4.6781899,2633.4,2632.8,3.79815]
[1727744870816,4.6781899,2633.4,2632.5,3.79859]
[1727744870817,3.79788,2633.1,2632.5,3.79859]
[1727744871015,3.79788,2633.1,2632.4,3.79873]
[1727744871016,0.7542,2632.9,2632.4,3.79873]
[1727744871215,0.7542,2632.9,2632.5,3.79863]
[1727744871415,0.7542,2632.9,2632.4,3.79873]
[1727744871628,0.7542,2632.9,2632.5,0.379873]
[1727744872615,0.7542,2632.9,2632.4,3.79873]
[1727744873094,0.7542,2632.9,2632.4,3.79871]
[1727744873635,4.55231,2632.9,2632.4,3.79871]
[1727744873933,0.7542,2632.9,2632.4,7.59743]
[1727744874131,0.7542,2632.9,2632.5,3.79859]
[1727744874302,4.5523,2632.9,2632.4,1.059743]
[1727744874697,4.5523,2632.9,2632.2,3.799]
[1727744875014,4.5523,2632.9,2632.4,3.79878]
[1727744875332,3.79837,2632.8,2632.2,3.799]
[1727744876033,3.79837,2632.8,2632.2,7.59802]
[1727744876236,3.79837,2632.8,2632.2,9.05470169]
[1727744876737,3.79837,2632.8,2632.2,5.25568169]
[1727744876909,3.79834,2632.8,2632.2,5.25568169]
[1727744877105,7.59666,2632.8,2632.2,3.799]
[1727744877305,3.79832,2632.8,2632.2,3.799]
[1727744878350,3.79875,2632.5,2632.0,3.79935]
[1727744878520,4.57835,2632.7,2632.1,3.79914]
[1727744878919,3.79867,2632.5,2632.0,3.79929]
[1727744880120,3.79914,2632.2,2631.5,3.80007]
[1727744880306,0.7686,2632.1,2631.5,3.80007]
[1727744880511,3.79953,2631.9,2631.3,3.80031]
[1727744880759,3.79953,2631.9,2630.9,6.9682269]
[1727744880760,3.80012,2631.5,2630.9,3.8009]
[1727744880912,6.6251539,2632.5,2630.7,3.80119]
[1727744880913,0.7686,2631.3,2630.7,3.80119]
[1727744881271,0.7686,2631.3,2630.5,3.80152]
[1727744881272,0.7672,2631.0,2630.5,3.80152]
[1727744881549,0.7672,2631.0,2630.6,3.80138]
[1727744881923,0.7672,2631.0,2630.5,3.80152]
[1727744882109,0.7672,2631.0,2630.5,4.56945287]
[1727744882315,0.7672,2631.0,2630.5,3.80145]
[1727744883546,0.7672,2631.0,2630.0,3.80219]
[1727744883547,3.90405179,2630.8,2629.8,0.45408996]
[1727744883715,3.8018,2630.4,2629.7,3.80259]
[1727744884055,3.90405179,2630.8,2629.0,3.80361]
[1727744884056,0.7859,2630.1,2629.0,3.80361]
[1727744884259,3.80266,2629.8,2629.0,3.80361]
[1727744884424,0.7859,2629.7,2629.0,3.80361]
[1727744884608,0.7859,2629.7,2629.2,3.80331]
[1727744884811,0.7859,2629.7,2629.4,3.80312]
[1727744885123,0.7859,2629.7,2629.2,7.60665]
[1727744885333,0.7859,2629.7,2629.2,7.60661]
[1727744885652,0.7859,2629.7,2629.2,4.6098521]
[1727744886235,0.7859,2630.0,2629.6,3.80284]
[1727744886446,0.7859,2630.0,2629.7,3.80271]
[1727744886665,0.7859,2630.3,2629.8,0.380271]
[1727744887017,0.7859,2630.3,2629.9,3.80241]
[1727744887716,0.7859,2630.3,2629.8,0.380271]
[1727744887993,0.7859,2630.3,2629.8,4.182811]
[1727744888280,0.7859,2630.3,2629.9,3.80241]
[1727744888452,0.7859,2630.3,2629.9,4.6009391]
[1727744888838,0.7859,2630.3,2629.9,0.7985291]
[1727744889972,0.7859,2630.3,2629.8,3.80255]
[1727744890179,3.80204,2630.2,2629.5,0.7855]
[1727744890386,3.80204,2630.2,2629.6,3.0]
[1727744891739,4.641009,2630.2,2629.5,3.8029]
[1727744891859,0.7859,2630.3,2629.8,3.80245]
[1727744892057,0.7859,2630.3,2629.8,7.60489]
[1727744892249,0.7859,2630.3,2629.8,3.80244]
[1727744892449,0.7859,2630.3,2629.6,3.80275]
[1727744892645,0.7859,2630.3,2629.8,3.80249]
[1727744893043,11.15149,2630.6,2629.8,3.87849723]
[1727744893044,7.35,2630.6,2629.8,3.87849723]
[1727744893249,7.35,2630.6,2629.8,3.80248]
[1727744893250,3.80156,2630.5,2629.8,3.80248]
[1727744893478,3.80156,2630.5,2629.8,7.60496]
[1727744893781,0.7524,2630.6,2630.0,3.80218]
[1727744893985,4.55387,2630.6,2630.1,0.380218]
[1727744894147,4.55387,2630.6,2630.0,3.80218]
[1727744894587,0.7524,2630.6,2630.0,3.80218]
[1727744894884,4.55389,2630.6,2630.0,3.80218]
[1727744895985,4.55389,2630.6,2629.8,3.80251]
[1727744895986,3.80158,2630.5,2629.8,3.80251]
[1727744896145,3.80158,2630.5,2629.8,3.80245]
[1727744896350,3.80158,2630.5,2629.9,0.7983125]
[1727744896785,3.80158,2630.5,2629.9,4.6006525]
[1727744896962,4.55389,2630.6,2630.0,3.80225]
[1727744897160,8.35544,2630.6,2630.0,3.80225]
[1727744897404,4.55389,2630.6,2630.0,3.80225]
[1727744897694,4.55389,2630.6,2630.0,4.26230625]
[1727744898066,3.80162,2630.5,2630.0,0.46005625]
[1727744899074,3.80171,2630.4,2629.8,3.80246]
[1727744899456,3.80162,2630.5,2629.9,3.8024]
[1727744899651,3.80162,2630.5,2629.8,7.60492]
[1727744899848,3.80173,2630.4,2629.8,3.80246]
[1727744900093,3.80173,2630.4,2629.8,4.84713775]
[1727744900302,3.80162,2630.5,2629.9,3.8023]
[1727744900449,3.80162,2630.5,2629.8,4.84713775]
[1727744900793,3.80162,2630.5,2629.9,3.80242]
[1727744901086,0.7524,2630.6,2629.9,3.80242]
[1727744901087,0.7524,2630.6,2630.1,3.8021]
[1727744901294,0.7722,2630.8,2630.1,0.760452]
[1727744901589,7.35,2631.1,2630.9,3.80097]
[1727744901790,0.7722,2631.2,2630.5,4.55362]
[1727744901791,0.7722,2631.2,2630.7,3.80114]
[1727744902106,0.7722,2631.2,2630.4,6.80168]
[1727744902107,3.80095,2631.0,2630.4,6.80168]
[1727744902267,4.70338949,2630.9,2629.9,3.80234]
[1727744902472,0.7722,2630.3,2629.9,3.8024]
[1727744902774,0.7722,2630.3,2629.8,1.04467775]
[1727744902995,0.7722,2630.3,2629.7,3.80264]
[1727744903286,0.7722,2630.3,2629.9,3.80238]
[1727744903652,0.7722,2630.3,2629.7,3.80264]
[1727744903653,4.57409,2630.3,2629.7,3.80264]
[1727744903859,0.7722,2630.3,2629.7,3.80264]
[1727744904062,3.80203,2630.2,2629.6,3.0]
[1727744904276,3.80203,2630.2,2629.6,3.755499]
[1727744904666,0.7722,2630.3,2629.7,3.80271]
[1727744904870,0.7722,2630.3,2629.9,3.80233]
[1727744905400,0.7722,2630.3,2630.1,3.80204]
[1727744905689,3.80144,2630.6,2630.1,3.80204]
[1727744906592,3.80144,2630.6,2630.0,3.80226]
[1727744906840,3.80144,2630.6,2629.9,3.80236]
[1727744907132,0.7832,2630.5,2629.9,3.80236]
[1727744907436,4.58485,2630.5,2629.9,3.80236]
[1727744907729,0.7832,2630.5,2630.1,3.80208]
[1727744907922,0.7832,2630.5,2630.2,3.80196]
[1727744908289,0.7832,2630.5,2630.1,7.60413]
[1727744909403,0.7832,2630.5,2630.1,7.6041]
[1727744909723,0.7832,2630.5,2630.1,3.80205]
[1727744910026,0.7832,2630.5,2630.1,7.60409]
[1727744910244,0.8226,2630.8,2630.3,3.80176]
[1727744910808,0.8226,2630.8,2630.5,3.80151]
[1727744911040,0.8226,2630.8,2630.3,3.80176]
[1727744911241,4.62384,2630.8,2630.1,3.80206]
[1727744911453,31.03592534,2631.4,2629.9,7.63175]
[1727744911454,3.80156,2630.5,2629.9,6.80233]
[1727744911617,0.7763,2630.4,2629.9,3.80233]
[1727744911820,0.7763,2630.4,2629.9,7.60465]
[1727744912015,0.7763,2630.4,2630.0,3.80227]
[1727744912214,4.57803,2630.4,2629.9,3.80232]
[1727744912426,7.35,2630.9,2629.7,0.7685]
[1727744912427,0.7763,2630.8,2629.7,0.7685]
[1727744912626,0.7763,2630.8,2630.4,3.80167]
[1727744912932,0.7763,2630.8,2630.3,3.80183]
[1727744913110,0.7763,2630.8,2630.3,3.80176]
[1727744913309,0.7763,2630.8,2630.5,3.80155]
[1727744913949,4.57678,2631.3,2630.5,0.760331]
[1727744914130,4.57678,2631.3,2630.7,3.80119]
[1727744914317,0.7763,2631.3,2630.8,3.80104]
[1727744914848,0.7763,2631.3,2630.4,0.07602323]
[1727744914849,0.7763,2631.3,2630.9,3.80097]
[1727744915008,0.7763,2631.3,2630.3,6.80178]
[1727744915009,4.57671,2631.3,2630.5,3.80151]
[1727744915213,0.7763,2631.2,2629.9,0.7685]
[1727744915436,3.90592534,2631.4,2629.9,0.7685]
[1727744915437,0.7763,2630.8,2630.3,3.80174]
[1727744915941,3.80149,2630.6,2630.0,3.80227]
[1727744916109,3.80136,2630.7,2630.1,3.80211]
[1727744916819,3.80136,2630.7,2630.1,3.80205]
[1727744917205,0.8076,2630.6,2630.1,3.80213]
[1727744918554,0.8076,2630.6,2630.1,7.60418]
[1727744918846,0.8076,2630.6,2630.1,3.80205]
[1727744919046,0.8076,2630.6,2630.2,3.80193]
[1727744919350,0.8076,2630.6,2630.1,3.80205]
[1727744919643,0.8076,2630.6,2630.1,3.80204]
[1727744919868,0.8076,2630.6,2629.9,3.80239]
[1727744920011,3.80169,2630.5,2629.7,6.80258]
[1727744920234,3.80169,2630.5,2629.9,3.80242]
[1727744920450,3.80171,2630.4,2629.7,10.6052]
[1727744920653,3.80171,2630.4,2629.7,10.60521]
[1727744920816,4.64281,2630.4,2629.8,3.80246]
[1727744921154,0.8411,2630.4,2629.9,3.8024]
[1727744922166,0.8089,2630.2,2629.7,10.60528]
[1727744922455,0.8089,2630.2,2629.9,3.80241]
[1727744922835,0.8089,2630.2,2629.8,3.8025]
[1727744923231,0.8089,2630.2,2629.9,3.80242]
[1727744925031,0.8089,2630.2,2629.8,0.65982034]
[1727744925326,0.8089,2630.2,2629.9,3.80242]
[1727744925658,0.8089,2630.2,2629.8,5.25161252]
[1727744926520,0.8089,2630.2,2629.9,3.80233]
[1727744926719,0.8089,2630.2,2629.9,0.94353058]
[1727744926944,0.8089,2630.2,2629.9,4.74581058]
[1727744927460,0.8089,2630.2,2629.9,8.54813058]
[1727744927624,0.7884,2630.5,2629.9,4.74581058]
[1727744928461,4.58997,2630.5,2629.9,4.74581058]
[1727744928661,0.7884,2630.5,2630.1,3.80211]
[1727744929479,4.55661,2630.8,2630.3,3.80177]
[1727744929755,4.55661,2630.8,2630.2,3.80197]
[1727744929756,4.55665,2630.8,2630.2,3.80197]
[1727744929966,8.35785,2630.8,2630.2,3.80197]
[1727744930125,4.5566,2630.8,2630.2,3.80197]
[1727744930325,4.5566,2630.8,2630.1,4.65681806]
[1727744930326,3.80149,2630.6,2630.1,3.80202]
[1727744930654,0.7698,2630.5,2630.1,3.80202]
[1727744931520,0.7698,2630.5,2630.2,3.80198]
[1727744932815,0.7698,2630.5,2630.3,3.80176]
[1727744933646,14.32432726,2631.0,2630.4,3.8017]
[1727744933836,0.773,2630.9,2630.4,3.8017]
[1727744936370,0.773,2630.9,2630.0,3.80216]
[1727744936546,3.80128,2630.7,2630.2,3.80197]
[1727744936862,4.57406,2630.9,2630.1,3.8021]
[1727744937088,0.8089,2631.6,2630.4,3.0]